fUST/lending_fUST_20240802
["ID","MTS","AMOUNT","RATE_DAILY","PERIOD"]
[333868519,1722583842428,-500.0,0.00013698,2]
[333868521,1722583842438,-500.0,0.00013698,2]
[333868524,1722583842447,-503.81854357,0.00013698,2]
[333868527,1722583842457,-500.0,0.00013698,2]
[333868529,1722583842466,-500.0,0.00013698,2]
[333868531,1722583842477,-500.0,0.00013698,2]
[333868532,1722583842488,-216.21927671,0.00013698,2]
[333868533,1722583842499,-500.0,0.00013698,2]
[333868534,1722583842509,-500.0,0.00013698,2]
[333868535,1722583842518,-500.0,0.00013698,2]
[333868536,1722583842528,-529.40064775,0.00013698,2]
[333868537,1722583842538,-500.0,0.00013698,2]
[333868538,1722583842547,-500.0,0.00013698,2]
[333868539,1722583842637,-500.0,0.00013698,2]
[333868540,1722583842648,-500.0,0.00013698,2]
[333868541,1722583842658,-500.0,0.00013698,2]
[333868542,1722583842667,-500.0,0.00013698,2]
[333868543,1722583842676,-500.0,0.00013698,2]
[333868544,1722583842685,-545.42869578,0.00013698,2]
[333868545,1722583842694,-500.0,0.00013698,2]
[333868546,1722583842704,-500.0,0.00013698,2]
[333868547,1722583842714,-500.0,0.00013698,2]
[333868548,1722583842724,-207.99367531,0.00013698,2]
[333868549,1722583842733,-500.0,0.00013698,2]
[333868550,1722583842742,-500.0,0.00013698,2]
[333868551,1722583842753,-500.0,0.00013698,2]
[333868552,1722583842762,-550.69585905,0.00013698,2]
[333868554,1722583842771,-500.0,0.00013698,2]
[333868556,1722583842781,-500.0,0.00013698,2]
[333868558,1722583842792,-500.0,0.00013698,2]
[333868560,1722583842802,-544.57289447,0.00013698,2]
[333868562,1722583842813,-265.789588,0.00013698,2]
[333868564,1722583842823,-500.0,0.00013698,2]
[333868565,1722583842832,-500.0,0.00013698,2]
[333868567,1722583842840,-501.9122577,0.00013698,2]
[333868569,1722583842851,-500.0,0.00013698,2]
[333868571,1722583842860,-500.0,0.00013698,2]
[333868573,1722583842871,-500.0,0.00013698,2]
[333868575,1722583842880,-3000.0,0.00013699,2]
[333868577,1722583842890,-866.166911,0.00013699,2]
[333868578,1722583842899,-306.0,0.00013752,2]
[333868580,1722583842908,-362.52749296,0.00013866,2]
[333868582,1722583842917,-4208.67589923,0.00013884,2]
[333868584,1722583842927,-150.112233,0.000139,2]
[333868586,1722583842936,-1089.11545066,0.00013938,2]
[333868588,1722583842949,-1925.67954722,0.00013938,2]
[333868590,1722583842959,-15215.29840441,0.00013961,2]
[333868606,1722583843133,-330.12169935,0.00013698,2]
[333868610,1722583843170,-169.87830065,0.00013698,2]
[333868612,1722583843179,-3074.37969921,0.00013961,2]
[333868801,1722583846318,-8244.397233,0.00012516,2]
[333868803,1722583846329,-504.38,0.00013698,2]
[333868805,1722583846338,-500.0,0.00013698,2]
[333868807,1722583846347,-357.59372042,0.00013961,2]
[333869474,1722583880120,209.03992991,9.999e-05,2]
[333869476,1722583909853,401.536873,9.999e-05,2]
[333869480,1722583992341,19440.66973475,9.999e-05,2]
[333869481,1722583997896,206.21786366,9.999e-05,2]
[333869482,1722584012465,2693.77541555,9.999e-05,2]
[333869483,1722584029506,427.71109051,9.999e-05,2]
[333869484,1722584031328,157.72562932,9.999e-05,2]
[333869485,1722584038274,16282.69856011,9.999e-05,2]
[333869486,1722584038384,521.99851068,9.999e-05,2]
[333869487,1722584038455,196.33497966,9.999e-05,2]
[333869488,1722584038927,849.25645947,9.999e-05,2]
[333869489,1722584039322,288.23515322,9.999e-05,2]
[333869490,1722584039436,154.78080717,9.999e-05,2]
[333869491,1722584040301,157.1495369,9.999e-05,2]
[333869492,1722584041166,155.190668,0.0001,2]
[333869493,1722584041238,154.85764739,9.999e-05,2]
[333869494,1722584041378,162.07246935,9.999e-05,2]
[333869495,1722584042366,1531.61170654,9.999e-05,2]
[333869496,1722584043387,205.15273925,9.999e-05,2]
[333869497,1722584043484,155.1460919,9.999e-05,2]
[333869498,1722584045277,666.03927081,9.999e-05,2]
[333869499,1722584045486,2108.58934648,9.999e-05,2]
[333869500,1722584046326,84.89835395,9.999e-05,2]
[333869501,1722584046356,225.21665677,9.999e-05,2]
[333869502,1722584046456,155.10472178,9.999e-05,2]
[333869503,1722584048364,154.97765059,9.999e-05,2]
[333869504,1722584048637,403.88474617,9.999e-05,2]
[333869505,1722584049139,200.11396864,9.999e-05,2]
[333869506,1722584049219,282.49137752,9.999e-05,2]
[333869507,1722584050219,728.50429862,9.999e-05,2]
[333869508,1722584053044,588.59630966,9.999e-05,2]
[333869509,1722584053968,858.47393898,9.999e-05,2]
[333869510,1722584054377,205.15273925,9.999e-05,2]
[333869511,1722584055224,155.25829921,9.999e-05,2]
[333869512,1722584063519,155.08780149,9.999e-05,2]
[333869513,1722584064020,197.14350195,9.999e-05,2]
[333869514,1722584067242,163.04000615,9.999e-05,2]
[333869515,1722584074827,5030.42320077,0.00027,120]
[333869516,1722584076275,520.27214263,9.999e-05,2]
[333869517,1722584076971,182.98285056,9.999e-05,2]
[333869518,1722584085988,220.59281025,9.999e-05,2]
[333869519,1722584088323,155.03632289,9.999e-05,2]
[333869520,1722584117503,426.74087025,9.999e-05,2]
[333869521,1722584118342,546.22775046,9.999e-05,2]
[333869522,1722584120259,156.28069867,9.999e-05,2]
[333869524,1722584130409,155.15085854,9.999e-05,2]
[333869525,1722584139964,494.15268939,9.999e-05,2]
[333869526,1722584141200,793.37801494,9.999e-05,2]
[333869527,1722584145447,848.52963715,9.999e-05,2]
[333869528,1722584155253,16285.61378307,9.999e-05,2]
[333869529,1722584155490,1358.28749312,9.999e-05,2]
[333869530,1722584158379,337.32427169,9.999e-05,2]
[333869531,1722584162256,162.87331111,9.999e-05,2]
[333869532,1722584162374,520.71417509,9.999e-05,2]
[333869533,1722584164976,729.430892,9.999e-05,2]
[333869534,1722584165229,155.18481179,9.999e-05,2]
[333869536,1722584180375,519.51133137,9.999e-05,2]
[333869538,1722584222517,426.74087025,9.999e-05,2]
[333869539,1722584250974,493.80603791,9.999e-05,2]
[333869540,1722584252504,426.74087025,9.999e-05,2]
[333869541,1722584256922,154.71377951,9.999e-05,2]
[333869542,1722584262287,520.58881863,9.999e-05,2]
[333869546,1722584280267,8822.58482748,9.999e-05,2]
[333869547,1722584306358,155.22571178,9.999e-05,2]
[333869548,1722584354926,155.38202625,9.999e-05,2]
[333869549,1722584364512,426.74087025,9.999e-05,2]
[333869551,1722584458525,250.58354007,9.999e-05,2]
[333869552,1722584466515,426.84812001,9.999e-05,2]
[333869553,1722584554021,426.63362049,9.999e-05,2]
[333869554,1722584675093,189.32664876,9.999e-05,2]
[333869555,1722584700916,160.49837215,9.999e-05,2]
[333869558,1722584774045,210.92041495,9.999e-05,2]
[333869586,1722585032007,-163.569095,0.00012986,2]
[333869587,1722585032018,-150.112233,0.000132,2]
[333869588,1722585032028,-728.14937329,0.00013238,2]
[333869589,1722585032037,-47.46929871,0.00013239,2]
[333869590,1722585032050,-252.53070129,0.00013239,2]
[333869591,1722585032059,-300.0,0.00013239,2]
[333869593,1722585032069,-3795.34586919,0.0001324,2]
[333869595,1722585032081,-7216.30321092,0.0001324,2]
[333869603,1722585032147,-305.84891193,0.0001324,2]
[333869625,1722585037928,-28145.86064486,0.0001324,2]
[333869626,1722585037940,-138082.95056653,0.0001325,5]
[333869627,1722585037952,-5303.85999854,0.000133,2]
[333869628,1722585037963,-39463.3586369,0.00013365,2]
[333869629,1722585037974,-5303.8599985,0.00013375,2]
[333869630,1722585037984,-150.112233,0.000134,2]
[333869631,1722585037993,-2812.83,0.00013424,2]
[333869632,1722585038003,-2812.83,0.00013424,2]
[333869633,1722585038015,-2812.83,0.00013424,2]
[333869635,1722585038027,-5303.8599985,0.00013449,2]
[333869636,1722585038037,-150.112233,0.000135,2]
[333869637,1722585038047,-5303.8599985,0.00013524,2]
[333869638,1722585038057,-4422.21941839,0.00013592,2]
[333869639,1722585038067,-5303.8599985,0.00013598,2]
[333869640,1722585038078,-2000.0,0.00013598,2]
[333869641,1722585038088,-150.112233,0.000136,2]
[333869642,1722585038098,-367.80729453,0.00013641,2]
[333869643,1722585038107,-300.54675957,0.00013673,2]
[333869644,1722585038117,-39463.3586369,0.00013678,2]
[333869645,1722585038127,-11653.27547412,0.00013688,5]
[333869646,1722585038137,-151.0,0.00013688,2]
[333869647,1722585038147,-151.0,0.00013688,2]
[333869648,1722585038158,-151.0,0.00013688,2]
[333869649,1722585038167,-151.0,0.00013688,2]
[333869650,1722585038177,-151.0,0.00013688,2]
[333869651,1722585038187,-208.227793,0.00013688,2]
[333869652,1722585038199,-208.227793,0.00013688,2]
[333869653,1722585038208,-151.0,0.00013688,2]
[333869654,1722585038219,-206.269389,0.00013688,2]
[333869655,1722585038230,-206.269389,0.00013688,2]
[333869656,1722585038242,-199.608737,0.00013688,2]
[333869657,1722585038254,-151.0,0.00013688,2]
[333869658,1722585038265,-665.770333,0.00013688,2]
[333869659,1722585038279,-199.608737,0.00013688,2]
[333869660,1722585038288,-665.770333,0.00013688,2]
[333869661,1722585038298,-151.0,0.00013688,2]
[333869662,1722585038309,-908.583241,0.00013688,2]
[333869663,1722585038320,-908.583241,0.00013688,2]
[333869664,1722585038330,-151.0,0.00013688,2]
[333869665,1722585038350,-151.0,0.00013688,2]
[333869666,1722585038363,-151.0,0.00013688,2]
[333869667,1722585038373,-295.69969,0.00013688,2]
[333869668,1722585038383,-157853.434547,0.00013688,2]
[333869669,1722585038393,-150.45151105,0.00013691,2]
[333869670,1722585038403,-2812.83,0.00013697,2]
[333869671,1722585038413,-2812.83,0.00013697,2]
[333869672,1722585038423,-2812.83,0.00013697,2]
[333869673,1722585038433,-2812.83,0.00013697,2]
[333869674,1722585038443,-17103.79851164,0.00013698,5]
[333869675,1722585038452,-501.61603736,0.00013698,2]
[333869676,1722585038462,-551.13558251,0.00013698,2]
[333869677,1722585038473,-501.37235507,0.00013698,2]
[333869678,1722585038486,-501.23858222,0.00013698,2]
[333869679,1722585038496,-500.0,0.00013698,2]
[333869680,1722585038506,-500.0,0.00013698,2]
[333869681,1722585038515,-500.0,0.00013698,2]
[333869682,1722585038528,-503.87964327,0.00013698,2]
[333869683,1722585038539,-504.19979343,0.00013698,2]
[333869685,1722585038549,-500.0,0.00013698,2]
[333869687,1722585038560,-500.0,0.00013698,2]
[333869689,1722585038574,-500.0,0.00013698,2]
[333869691,1722585038584,-585.45535077,0.00013698,2]
[333869692,1722585038595,-500.0,0.00013698,2]
[333869694,1722585038606,-500.0,0.00013698,2]
[333869696,1722585038616,-500.0,0.00013698,2]
[333869698,1722585038626,-503.96679384,0.00013698,2]
[333869700,1722585038636,-515.53200466,0.00013698,2]
[333869701,1722585038646,-254.34845063,0.00013698,2]
[333869703,1722585038657,-500.0,0.00013698,2]
[333869705,1722585038667,-500.0,0.00013698,2]
[333869707,1722585038677,-500.0,0.00013698,2]
[333869709,1722585038686,-500.0,0.00013698,2]
[333869711,1722585038696,-500.0,0.00013698,2]
[333869713,1722585038706,-503.33143735,0.00013698,2]
[333869714,1722585038716,-433.44925268,0.00013698,2]
[333869716,1722585038726,-500.0,0.00013698,2]
[333869718,1722585038736,-500.0,0.00013698,2]
[333869720,1722585038748,-500.0,0.00013698,2]
[333869722,1722585038758,-500.0,0.00013698,2]
[333869724,1722585038767,-500.0,0.00013698,2]
[333869726,1722585038780,-500.0,0.00013698,2]
[333869727,1722585038790,-500.0,0.00013698,2]
[333869729,1722585038799,-500.0,0.00013698,2]
[333869731,1722585038809,-500.0,0.00013698,2]
[333869733,1722585038818,-500.0,0.00013698,2]
[333869735,1722585038828,-500.0,0.00013698,2]
[333869737,1722585038837,-500.0,0.00013698,2]
[333869738,1722585038847,-498.22269994,0.00013698,2]
[333869740,1722585038856,-500.0,0.00013698,2]
[333869742,1722585038866,-500.0,0.00013698,2]
[333869744,1722585038875,-226.49641202,0.00013698,2]
[333869746,1722585038884,-245.24126415,0.00013698,2]
[333869747,1722585038894,-500.0,0.00013698,2]
[333869749,1722585038904,-500.0,0.00013698,2]
[333869751,1722585038914,-500.0,0.00013698,2]
[333869753,1722585038923,-500.0,0.00013698,2]
[333869755,1722585038934,-500.0,0.00013698,2]
[333869757,1722585038944,-500.0,0.00013698,2]
[333869759,1722585038955,-500.0,0.00013698,2]
[333869761,1722585038964,-500.0,0.00013698,2]
[333869763,1722585038974,-500.0,0.00013698,2]
[333869764,1722585038984,-205.385472,0.00013698,2]
[333869766,1722585038993,-531.07051844,0.00013698,2]
[333869768,1722585039003,-500.0,0.00013698,2]
[333869770,1722585039012,-500.0,0.00013698,2]
[333869772,1722585039023,-151.0,0.00013698,2]
[333869774,1722585039032,-500.0,0.00013698,2]
[333869775,1722585039042,-798.59,0.00013698,2]
[333869777,1722585039051,-225.230668,0.00013698,2]
[333869779,1722585039061,-151.0,0.00013698,2]
[333869781,1722585039071,-225.230668,0.00013698,2]
[333869783,1722585039081,-151.0,0.00013698,2]
[333869785,1722585039092,-559.41918924,0.00013698,2]
[333869786,1722585039101,-328.10424072,0.00013698,2]
[333869788,1722585039112,-500.0,0.00013698,2]
[333869790,1722585039121,-500.0,0.00013698,2]
[333869792,1722585039131,-500.0,0.00013698,2]
[333869794,1722585039141,-500.0,0.00013698,2]
[333869796,1722585039151,-500.0,0.00013698,2]
[333869798,1722585039161,-500.0,0.00013698,2]
[333869799,1722585039170,-500.0,0.00013698,2]
[333869801,1722585039180,-151.0,0.00013698,2]
[333869803,1722585039189,-151.0,0.00013698,2]
[333869805,1722585039199,-500.0,0.00013698,2]
[333869807,1722585039212,-500.0,0.00013698,2]
[333869809,1722585039222,-500.0,0.00013698,2]
[333869811,1722585039231,-507.185427,0.00013698,2]
[333869813,1722585039241,-500.0,0.00013698,2]
[333869815,1722585039252,-500.0,0.00013698,2]
[333869816,1722585039261,-500.0,0.00013698,2]
[333869818,1722585039272,-500.0,0.00013698,2]
[333869820,1722585039281,-500.0,0.00013698,2]
[333869822,1722585039291,-447.36500374,0.00013698,2]
[333869824,1722585039300,-203.19374433,0.00013698,2]
[333869826,1722585039310,-210.22999388,0.00013698,2]
[333869828,1722585039319,-500.0,0.00013698,2]
[333869830,1722585039330,-554.18261116,0.00013698,2]
[333869832,1722585039341,-500.0,0.00013698,2]
[333869834,1722585039350,-500.0,0.00013698,2]
[333869836,1722585039360,-500.0,0.00013698,2]
[333869838,1722585039370,-500.0,0.00013698,2]
[333869840,1722585039379,-500.0,0.00013698,2]
[333869841,1722585039389,-505.94812083,0.00013698,2]
[333869843,1722585039398,-500.0,0.00013698,2]
[333869845,1722585039408,-500.0,0.00013698,2]
[333869847,1722585039418,-500.0,0.00013698,2]
[333869859,1722585039551,-500.0,0.00013698,2]
[333869861,1722585039563,-504.56693852,0.00013698,2]
[333869863,1722585039574,-505.0985982,0.00013698,2]
[333869865,1722585039585,-500.0,0.00013698,2]
[333869867,1722585039594,-518.07381064,0.00013698,2]
[333869869,1722585039603,-375.89863565,0.00013698,2]
[333869871,1722585039614,-500.0,0.00013698,2]
[333869873,1722585039624,-500.0,0.00013698,2]
[333869875,1722585039634,-500.0,0.00013698,2]
[333869877,1722585039644,-500.0,0.00013698,2]
[333869879,1722585039654,-500.0,0.00013698,2]
[333869881,1722585039664,-363.2417921,0.00013698,2]
[333869883,1722585039673,-500.0,0.00013698,2]
[333869884,1722585039682,-500.0,0.00013698,2]
[333869886,1722585039691,-151.0,0.00013698,2]
[333869888,1722585039702,-151.0,0.00013698,2]
[333869890,1722585039713,-500.0,0.00013698,2]
[333869892,1722585039723,-151.0,0.00013698,2]
[333869894,1722585039733,-500.0,0.00013698,2]
[333869896,1722585039743,-151.0,0.00013698,2]
[333869898,1722585039752,-500.0,0.00013698,2]
[333869899,1722585039762,-500.0,0.00013698,2]
[333869902,1722585039774,-151.0,0.00013698,2]
[333869903,1722585039782,-282.229502,0.00013698,2]
[333869905,1722585039792,-500.0,0.00013698,2]
[333869907,1722585039802,-500.0,0.00013698,2]
[333869909,1722585039811,-500.0,0.00013698,2]
[333869911,1722585039822,-500.0,0.00013698,2]
[333869913,1722585039831,-500.0,0.00013698,2]
[333869914,1722585039841,-500.0,0.00013698,2]
[333869916,1722585039850,-500.0,0.00013698,2]
[333869918,1722585039859,-151.0,0.00013698,2]
[333869920,1722585039868,-151.0,0.00013698,2]
[333869922,1722585039877,-151.0,0.00013698,2]
[333869923,1722585039887,-151.0,0.00013698,2]
[333869925,1722585039896,-500.0,0.00013698,2]
[333869927,1722585039905,-500.0,0.00013698,2]
[333869929,1722585039914,-151.0,0.00013698,2]
[333869931,1722585039924,-151.0,0.00013698,2]
[333869933,1722585039933,-500.0,0.00013698,2]
[333869934,1722585039942,-500.0,0.00013698,2]
[333869936,1722585039952,-500.0,0.00013698,2]
[333869938,1722585039962,-500.0,0.00013698,2]
[333869940,1722585039973,-500.0,0.00013698,2]
[333869942,1722585039982,-500.0,0.00013698,2]
[333869944,1722585039992,-308.07521683,0.00013698,2]
[333869946,1722585040001,-500.0,0.00013698,2]
[333869948,1722585040010,-151.0,0.00013698,2]
[333869950,1722585040020,-513.66816411,0.00013698,2]
[333869951,1722585040033,-500.0,0.00013698,2]
[333869953,1722585040043,-151.0,0.00013698,2]
[333869955,1722585040052,-151.0,0.00013698,2]
[333869957,1722585040061,-500.0,0.00013698,2]
[333869959,1722585040074,-500.0,0.00013698,2]
[333869961,1722585040085,-500.0,0.00013698,2]
[333869963,1722585040096,-815.89,0.00013698,2]
[333869965,1722585040105,-228.77730767,0.00013698,2]
[333869967,1722585040115,-500.0,0.00013698,2]
[333869969,1722585040124,-500.0,0.00013698,2]
[333869971,1722585040133,-500.0,0.00013698,2]
[333869973,1722585040143,-195.67935358,0.00013698,2]
[333869974,1722585040154,-151.0,0.00013698,2]
[333869976,1722585040163,-151.0,0.00013698,2]
[333869978,1722585040173,-500.0,0.00013698,2]
[333869980,1722585040182,-151.0,0.00013698,2]
[333869982,1722585040192,-151.0,0.00013698,2]
[333869984,1722585040202,-151.0,0.00013698,2]
[333869986,1722585040211,-151.0,0.00013698,2]
[333869988,1722585040221,-500.0,0.00013698,2]
[333869989,1722585040231,-500.0,0.00013698,2]
[333869991,1722585040240,-311.80711792,0.00013698,2]
[333869993,1722585040251,-500.0,0.00013698,2]
[333869995,1722585040260,-500.0,0.00013698,2]
[333869997,1722585040270,-151.0,0.00013698,2]
[333869999,1722585040281,-500.0,0.00013698,2]
[333870001,1722585040291,-500.0,0.00013698,2]
[333870002,1722585040300,-151.0,0.00013698,2]
[333870004,1722585040309,-151.0,0.00013698,2]
[333870006,1722585040319,-151.0,0.00013698,2]
[333870008,1722585040329,-500.0,0.00013698,2]
[333870010,1722585040338,-500.0,0.00013698,2]
[333870012,1722585040348,-601.61809194,0.00013698,2]
[333870014,1722585040358,-500.0,0.00013698,2]
[333870015,1722585040368,-346.0941936,0.00013698,2]
[333870017,1722585040379,-151.0,0.00013698,2]
[333870019,1722585040389,-151.0,0.00013698,2]
[333870021,1722585040399,-151.0,0.00013698,2]
[333870023,1722585040409,-151.0,0.00013698,2]
[333870025,1722585040420,-501.5464668,0.00013698,2]
[333870027,1722585040431,-151.0,0.00013698,2]
[333870029,1722585040441,-500.0,0.00013698,2]
[333870031,1722585040450,-500.0,0.00013698,2]
[333870033,1722585040458,-500.0,0.00013698,2]
[333870034,1722585040467,-500.0,0.00013698,2]
[333870036,1722585040477,-500.0,0.00013698,2]
[333870038,1722585040491,-500.0,0.00013698,2]
[333870040,1722585040500,-500.0,0.00013698,2]
[333870042,1722585040510,-500.0,0.00013698,2]
[333870044,1722585040519,-500.0,0.00013698,2]
[333870046,1722585040532,-500.0,0.00013698,2]
[333870047,1722585040542,-500.0,0.00013698,2]
[333870049,1722585040552,-500.0,0.00013698,2]
[333870051,1722585040563,-500.0,0.00013698,2]
[333870053,1722585040573,-500.0,0.00013698,2]
[333870055,1722585040585,-500.0,0.00013698,2]
[333870057,1722585040597,-500.0,0.00013698,2]
[333870059,1722585040608,-500.0,0.00013698,2]
[333870061,1722585040621,-500.0,0.00013698,2]
[333870063,1722585040631,-500.0,0.00013698,2]
[333870065,1722585040642,-517.53596677,0.00013698,2]
[333870067,1722585040653,-151.0,0.00013698,2]
[333870069,1722585040667,-151.0,0.00013698,2]
[333870071,1722585040678,-151.0,0.00013698,2]
[333870073,1722585040687,-151.0,0.00013698,2]
[333870075,1722585040696,-500.0,0.00013698,2]
[333870077,1722585040705,-151.0,0.00013698,2]
[333870079,1722585040715,-151.0,0.00013698,2]
[333870080,1722585040724,-255.661967,0.00013698,2]
[333870082,1722585040734,-500.0,0.00013698,2]
[333870084,1722585040745,-500.0,0.00013698,2]
[333870086,1722585040757,-500.0,0.00013698,2]
[333870088,1722585040766,-151.0,0.00013698,2]
[333870090,1722585040779,-500.0,0.00013698,2]
[333870092,1722585040788,-151.0,0.00013698,2]
[333870094,1722585040798,-151.0,0.00013698,2]
[333870095,1722585040807,-151.0,0.00013698,2]
[333870097,1722585040817,-500.0,0.00013698,2]
[333870099,1722585040828,-151.0,0.00013698,2]
[333870101,1722585040838,-451.447892,0.00013698,2]
[333870103,1722585040848,-451.447892,0.00013698,2]
[333870105,1722585040859,-176.997316,0.00013698,2]
[333870107,1722585040869,-451.447892,0.00013698,2]
[333870109,1722585040879,-451.447892,0.00013698,2]
[333870111,1722585040888,-451.447892,0.00013698,2]
[333870112,1722585040898,-504.30618245,0.00013698,2]
[333870114,1722585040907,-500.0,0.00013698,2]
[333870116,1722585040917,-451.447892,0.00013698,2]
[333870118,1722585040926,-451.447892,0.00013698,2]
[333870119,1722585040935,-500.0,0.00013698,2]
[333870121,1722585040944,-451.447892,0.00013698,2]
[333870123,1722585040953,-451.447892,0.00013698,2]
[333870125,1722585040963,-451.447892,0.00013698,2]
[333870126,1722585040971,-500.0,0.00013698,2]
[333870128,1722585040983,-500.0,0.00013698,2]
[333870130,1722585040993,-500.0,0.00013698,2]
[333870132,1722585041003,-500.0,0.00013698,2]
[333870134,1722585041014,-500.0,0.00013698,2]
[333870136,1722585041024,-500.0,0.00013698,2]
[333870138,1722585041034,-500.0,0.00013698,2]
[333870140,1722585041044,-500.0,0.00013698,2]
[333870142,1722585041054,-500.0,0.00013698,2]
[333870144,1722585041063,-500.0,0.00013698,2]
[333870145,1722585041072,-500.0,0.00013698,2]
[333870147,1722585041082,-364.22530902,0.00013698,2]
[333870149,1722585041091,-500.0,0.00013698,2]
[333870151,1722585041100,-500.0,0.00013698,2]
[333870153,1722585041110,-500.0,0.00013698,2]
[333870155,1722585041119,-500.0,0.00013698,2]
[333870156,1722585041128,-500.0,0.00013698,2]
[333870158,1722585041136,-500.0,0.00013698,2]
[333870160,1722585041146,-500.0,0.00013698,2]
[333870162,1722585041155,-500.0,0.00013698,2]
[333870164,1722585041166,-500.0,0.00013698,2]
[333870165,1722585041175,-500.0,0.00013698,2]
[333870167,1722585041184,-500.0,0.00013698,2]
[333870169,1722585041194,-500.0,0.00013698,2]
[333870171,1722585041204,-500.0,0.00013698,2]
[333870173,1722585041216,-187.58865467,0.00013698,2]
[333870187,1722585041795,-312.41134533,0.00013698,2]
[333870188,1722585041805,-172.114182,0.00013698,2]
[333870189,1722585041815,-170.70866551,0.00013698,2]
[333870190,1722585041833,-1.40551649,0.00013698,2]
[333870191,1722585041842,-172.114182,0.00013698,2]
[333870192,1722585041853,-172.114182,0.00013698,2]
[333870193,1722585041863,-172.114182,0.00013698,2]
[333870194,1722585041873,-403.83659788,0.00013698,2]
[333870195,1722585041885,-96.16340212,0.00013698,2]
[333870196,1722585041897,-500.0,0.00013698,2]
[333870197,1722585041906,-532.0197992,0.00013698,2]
[333870198,1722585041916,-183.702283,0.00013698,2]
[333870199,1722585041926,-500.0,0.00013698,2]
[333870200,1722585041936,-183.702283,0.00013698,2]
[333870201,1722585041946,-183.702283,0.00013698,2]
[333870202,1722585041956,-500.0,0.00013698,2]
[333870203,1722585041965,-172.114182,0.00013698,2]
[333870204,1722585041974,-500.0,0.00013698,2]
[333870205,1722585041984,-183.702283,0.00013698,2]
[333870206,1722585041993,-500.0,0.00013698,2]
[333870207,1722585042004,-183.702283,0.00013698,2]
[333870208,1722585042013,-172.114182,0.00013698,2]
[333870209,1722585042024,-172.114182,0.00013698,2]
[333870210,1722585042034,-262.13385108,0.00013698,2]
[333870211,1722585042044,-172.114182,0.00013698,2]
[333870212,1722585042054,-500.0,0.00013698,2]
[333870213,1722585042066,-172.114182,0.00013698,2]
[333870214,1722585042078,-488.26689076,0.00013698,2]
[333870215,1722585042089,-500.0,0.00013698,2]
[333870216,1722585042098,-183.702283,0.00013698,2]
[333870217,1722585042107,-183.702283,0.00013698,2]
[333870218,1722585042117,-183.702283,0.00013698,2]
[333870219,1722585042127,-500.0,0.00013698,2]
[333870220,1722585042137,-183.702283,0.00013698,2]
[333870221,1722585042146,-640.39,0.00013698,2]
[333870222,1722585042155,-183.702283,0.00013698,2]
[333870223,1722585042164,-151.0,0.00013698,2]
[333870224,1722585042173,-234.699034,0.00013698,2]
[333870225,1722585042183,-500.0,0.00013698,2]
[333870226,1722585042191,-151.0,0.00013698,2]
[333870227,1722585042201,-157.657305,0.00013698,2]
[333870228,1722585042210,-500.0,0.00013698,2]
[333870229,1722585042221,-234.64597568,0.00013698,2]
[333870230,1722585042231,-151.0,0.00013698,2]
[333870231,1722585042241,-520.43073194,0.00013698,2]
[333870232,1722585042251,-502.42193957,0.00013698,2]
[333870233,1722585042260,-500.0,0.00013698,2]
[333870234,1722585042271,-500.0,0.00013698,2]
[333870235,1722585042280,-500.0,0.00013698,2]
[333870236,1722585042290,-500.0,0.00013698,2]
[333870237,1722585042301,-500.0,0.00013698,2]